{"text_format":"1","workbook":"xlsx","n_sheets":8,"sheets":["AER only","Contents","Instructions","Business & other details","2.5 Connections","2.6 Non-network","2.10 Network overheads","Amendments"],"not_rendered":{"charts":0,"images":5,"macros":1,"external_links":1,"defined_names":355,"comments":1,"pivot_tables":0},"unopened":[],"bounds":{"document_bytes":16777216,"sheet_cells":100000,"rows_first":2000,"rows_last":500,"rows_between":2000,"halvings":0,"cell_chars":16384,"cell_head_chars":4096},"cells_cut":0,"cells_raw":0,"read":"whole","date_system":"1900"}

{"sheet":"AER only","index":0,"n_rows":145,"n_cols":40,"rows_kept":145,"cut":false,"hidden":true,"merged":[[53,34,57,34],[61,34,62,34],[67,14,67,15],[67,22,67,25],[105,1,105,8],[50,34,52,34],[0,1,0,11],[3,28,3,38],[4,28,4,31],[4,34,4,38],[48,22,48,26],[48,28,48,31],[49,1,49,5],[49,14,49,21],[49,22,49,26],[49,28,49,31],[50,2,50,3]]}
[null,"Data in these columns used for data validation and database purposes."]
[null,"Date last modified:","2017-01-16","added (Albury and Victora) for AGN"]
[]
[null,null,null,null,null,null,null,null,null,null,null,null,null,null,null,null,null,null,null,null,null,null,null,null,null,null,null,null,"FOR ELECTRICITY BUSINESSES ONLY"]
[null,null,null,null,null,null,null,null,null,null,null,null,null,null,null,null,null,null,null,null,null,null,null,null,null,null,null,null,"Feeder Types",null,null,null,"TasNetworks (D)","MAIFI flag","Feeder Names"]
[null,null,null,null,null,null,null,null,null,null,null,null,null,null,null,null,null,null,null,null,null,null,null,null,null,null,null,null,"CBD","Urban","Short rural","long rural","EXTRA"]
[null,"dms_TradingName_List","dms_TradingNameFull_List","dms_ABN_List","dms_JurisdictionList","dms_Sector_List","dms_Segment_List","dms_FormControl_List","dms_RPT_List","dms_RPTMonth_List","dms_CRCPlength_List","dms_FRCPlength_List","dms_663_List","dms_DeterminationRef_List","dms_Addr1_List","dms_Addr2_List","dms_Suburb_List","dms_State_List","dms_PostCode_List","dms_PAddr1_List","dms_PAddr2_List","dms_PSuburb_List","dms_PState_List","dms_PPostCode_List","dms_ContactName1_List","dms_ContactPh1_List","dms_ContactEmail_List",null,"dms_CBD_flag","dms_Urban_flag","dms_ShortRural_flag","dms_LongRural_flag","dms_FeederType_5_flag","dms_MAIFI_flag_List","dms_FeederName_1","dms_FeederName_2","dms_FeederName_3","dms_FeederName_4","dms_FeederName_5"]
[null,"ActewAGL Distribution","ActewAGL Distribution",76670568688,"ACT","Electricity","Distribution","Revenue cap","Financial","June",5,5,5,"2014-19 Distribution Determination","40 Bunda Street",null,"CANBERRA","ACT","2600","GPO BOX 366",null,"CANBERRA","ACT",2601,"Robert Walker","02 6248 3847","robert.walker@actewagle.com.au",null,"NO","YES","YES","NO","NO",null,"CBD","Urban","Short rural","Long rural",null,"ActewAGL Distribution"]
[null,"ActewAGL Distribution (Tx Assets)","ActewAGL Distribution (Tx Assets)",76670568688,"ACT","Electricity","Distribution","Revenue cap","Financial","June",5,5,5,"distribution determination","40 Bunda Street",null,"CANBERRA","ACT","2600","GPO BOX 366",null,"CANBERRA","ACT",2601,"Robert Walker","02 6248 3847","robert.walker@actewagle.com.au",null,null,null,null,null,null,null,"CBD","Urban","Short rural","Long rural",null,"ActewAGL Distribution (Tx Assets)"]
[null,"ActewAGL Gas","ActewAGL Gas",76670568688,"ACT","Gas","Distribution","Weighted average price cap","Financial","June",5,5,"x",null,"40 Bunda Street",null,"CANBERRA","ACT","2600","GPO BOX 366",null,"CANBERRA","ACT",2601,"Philip Deamer","02 6248 3438","GasAAReview@actewagl.com.au",null,null,null,null,null,null,null,null,null,null,null,null,"ActewAGL Gas"]
[null,"AGN (Albury)","Australian Gas Networks Limited (reporting data for Albury)",19078551685,"Vic","Gas","Distribution","Weighted average price cap","Calendar","December",5,5,"x",null,"Level 6","400 King William Street","ADELAIDE","SA","5000","PO Box 6468","Halifax Street","ADELAIDE","SA","5000","Craig de Laine","08 8418 1129 ","craig.delaine@agn.com.au",null,null,null,null,null,null,null,"CBD","Urban","Short rural","Long rural",null,"AGN (Albury)"]
[null,"AGN (Albury and Victoria)","Australian Gas Networks Limited (reporting data for Albury and Victoria)",19078551685,"Vic","Gas","Distribution","Weighted average price cap","Calendar","December",5,5,"x",null,"Level 6","400 King William Street","ADELAIDE","SA","5000","PO Box 6468","Halifax Street","ADELAIDE","SA","5000","Craig de Laine","08 8418 1129 ","craig.delaine@agn.com.au",null,null,null,null,null,null,null,"CBD","Urban","Short rural","Long rural"]
[null,"AGN (SA)","Australian Gas Networks Limited (reporting data for SA)",19078551685,"SA","Gas","Distribution","Weighted average price cap","Financial","June",5,5,5,"distribution determination","Level 6","400 King William Street","ADELAIDE","SA","5000","PO Box 6468","Halifax Street","ADELAIDE","SA","5000","Craig de Laine","08 8418 1129 ","craig.delaine@agn.com.au",null,null,null,null,null,null,null,null,null,null,null,null,"AGN (SA)"]
[null,"AGN (Victoria)","Australian Gas Networks Limited (reporting data for Victoria)",19078551685,"Vic","Gas","Distribution","Weighted average price cap","Calendar","December",5,5,"x",null,null,null,null,null,null,null,null,null,null,null,null,null,null,null,null,null,null,null,null,null,null,null,null,null,null,"AGN (Victoria)"]
[null,"Amadeus","APT Pipelines (NT) Pty Ltd",39009737393,"NT","Gas","Transmission","Weighted average price cap","Financial","June",5,5,"x","n/a","Level 19, HSBC Building","580 George Street","SYDNEY","NSW","2000","Level 19, HSBC Building","580 George Street","SYDNEY","NSW","2000","Alexandra Curran","02 9275 0020","alexandra.curran@apa.com.au",null,null,null,null,null,null,null,null,null,null,null,null,"Amadeus"]
[null,"APA GasNet","APA GasNet Australia (Operations) Pty Ltd","065083009","Vic","Gas","Transmission","Weighted average price cap","Calendar","December",5,5,"x",null,"Level 19, HSBC Building","580 George Street","SYDNEY","NSW","2000","PO Box R41",null,"ROYAL EXCHANGE","NSW","1225",null,"02 9693 0000",null,null,null,null,null,null,null,null,null,null,null,null,null,"APA GasNet"]
[null,"Ausgrid","Ausgrid",67505337385,"NSW","Electricity","Distribution","Revenue cap","Financial","June",5,5,5,"2014-19 Distribution Determination","570 George St",null,"SYDNEY","NSW",2000,null,null,null,null,null,"John Thomson","(02) 9269 2312","john.thomson@ausgrid.com.au",null,"YES","YES","YES","YES","NO",null,"CBD","Urban","Short rural","Long rural",null,"Ausgrid"]
[null,"Ausgrid (Tx Assets)","Ausgrid (Tx Assets)",67505337385,"NSW","Electricity","Distribution","Revenue cap","Financial","June",5,5,5,"distribution determination",null,null,null,"NSW",null,null,null,null,null,null,null,null,null,null,null,null,null,null,null,null,"CBD","Urban","Short rural","Long rural",null,"Ausgrid (Tx Assets)"]
[null,"AusNet (D)","AusNet Services (D)",91064651118,"Vic","Electricity","Distribution","Revenue cap","Calendar","December",5,5,2,"2016-20 Distribution Determination","Level 32","2 Southbank Boulevard","SOUTHBANK","Vic","3006","Locked Bag 14051",null,"MELBOURNE CITY MAIL CENTRE","VIC",8001,"Hannah Williams","03 9683 4088","hwilliams@powercor.com.au",null,null,"YES","YES","YES","NO",null,"CBD","Urban","Short rural","Long rural",null,"AusNet (D)"]
[null,"AusNet (Gas)","AusNet Gas Services","086015036","Vic","Gas","Distribution","Weighted average price cap","Calendar","December",5,5,"X",null,null,null,null,null,null,null,null,null,null,null,null,null,null,null,null,null,null,null,null,null,null,null,null,null,null,"AusNet (Gas)"]
[null,"AusNet (T)","Ausnet Services (Transmission) Ltd",48116124362,"Vic","Electricity","Transmission","Revenue cap","Financial","March",5,5,2,"transmission determination","Level 32","2 Southbank Boulevard","SOUTHBANK","Vic","3006","Locked Bag 14051",null,"MELBOURNE CITY MAIL CENTRE","Vic","8001","Clare Thompson","03 9695 6670","clare.e.thompson@ausnetservices.com.au",null,null,null,null,null,null,null,"CBD","Urban","Short rural","Long rural",null,"AusNet (T)"]
[null,"Australian Distribution Co.","Australian Distribution Co.",11222333444,"-","Electricity","Distribution","Revenue cap","Financial","June",5,5,2,"distribution determination","123 Straight Street",null,"SYDNEY","NSW","2000","PO Box 123",null,"SYDNEY","NSW",2000,"Bob Smith","02 1234 5678","bob@auselec.net.au",null,null,null,null,null,null,null,"CBD","Urban","Short rural","Long rural",null,"Australian Distribution Co."]
[null,"Australian Distribution Co. (Vic)","Australian Distribution Co. (Victoria)",11222333444,"Vic","Electricity","Distribution","Revenue cap","Calendar","December",5,5,2,"distribution determination","123 Straight Street",null,"MELBOURNE","Vic","3000","PO Box 123",null,"MELBOURNE","VIC","3000","Bob Smith","02 1234 5678","bob@auselec.net.au",null,null,null,null,null,null,null,"CBD","Urban","Short rural","Long rural",null,"Australian Distribution Co. (Vic)"]
[null,"Australian Transmission Co.","Australian Transmission Co.",11222333444,"-","Electricity","Transmission","Revenue cap","Financial","June",5,5,5,"transmission determination","123 Straight Street",null,"SYDNEY","NSW","2000","PO Box 123",null,"SYDNEY","NSW",2000,"Bob Smith","02 1234 5678","bob@auselec.net.au",null,null,null,null,null,null,null,"CBD","Urban","Short rural","Long rural",null,"Australian Transmission Co."]
[null,"CitiPower","CitiPower",76064651056,"Vic","Electricity","Distribution","Revenue cap","Calendar","December",5,5,2,"2016-20 Distribution Determination","40 Market Street",null,"MELBOURNE","Vic","3000","Locked Bag 14090",null,"MELBOURNE","VIC",8001,"Hannah Williams","03 9683 4088","hwilliams@powercor.com.au",null,"YES","YES","NO","NO","NO",null,"CBD","Urban","Short rural","Long rural",null,"CitiPower"]
[null,"Directlink","Directlink",16779340889,"Qld","Electricity","Transmission","Revenue cap","Financial","June",9,5,5,"transmission determination",null,null,null,"NSW",null,null,null,null,null,null,null,null,null,null,null,null,null,null,null,null,"CBD","Urban","Short rural","Long rural",null,"Directlink"]
[null,"ElectraNet","ElectraNet",41094482416,"SA","Electricity","Transmission","Revenue cap","Financial","June",5,5,5,"transmission determination","52-55 East Terrace","Rymill Park","ADELAIDE","SA","5000","PO Box 7096","Hutt Street Post Office","ADELAIDE","SA",5000,"Bill Jackson","08 8404 7969","jackson.bill@electranet.com.au",null,null,null,null,null,null,null,"CBD","Urban","Short rural","Long rural",null,"ElectraNet"]
[null,"Endeavour Energy","Endeavour Energy",11247365823,"NSW","Electricity","Distribution","Revenue cap","Financial","June",5,5,5,"2014-19 Distribution Determination","51 Huntingwood Drive",null,"HUNTINGWOOD","NSW","2148","PO Box 811",null,"SEVEN HILLS","NSW","1730","Jon Hocking","02 9853 4386 / 0407 348 156","Jon.Hocking@Endeavourenergy.com.au",null,"NO","YES","YES","YES","NO",null,"CBD","Urban","Short rural","Long rural",null,"Endeavour Energy"]
[null,"Energex","Energex",40078849055,"Qld","Electricity","Distribution","Revenue cap","Financial","June",5,5,5,"2015-20 Distribution Determination","26 Reddacliff Street",null,"NEWSTEAD","Qld","4006","26 Reddacliff Street",null,"NEWSTEAD","QLD","4006","Nicola Roscoe","07 3664 5891","nicolaroscoe@energex.com.au",null,"YES","YES","YES","NO","NO",null,"CBD","Urban","Short rural","Long rural",null,"Energex"]
[null,"Ergon Energy","Ergon Energy",50087646062,"Qld","Electricity","Distribution","Revenue cap","Financial","June",5,5,5,"2015-20 Distribution Determination","22 Walker Street",null,"TOWNSVILLE","Qld","4810","Po Box 264",null,"FORTITUDE VALLEY","QLD",4006,"Jenny Doyle, Group Manager Regulatory Affairs","(07) 3851 6416","jenny.doyle@ergon.com.au",null,"NO","YES","YES","YES","NO",null,"CBD","Urban","Short rural","Long rural",null,"Ergon Energy"]
[null,"Essential Energy","Essential Energy",37428185226,"NSW","Electricity","Distribution","Revenue cap","Financial","June",5,5,5,"2014-19 Distribution Determination","8 Buller Street",null,"PORT MACQUARIE","NSW","2444","PO Box 5730",null,"PORT MACQUARIE","NSW","2444","Catherine Waddell","02 6338 3553","catherine.waddell@essentialenergy.com.au",null,null,null,"YES","YES","NO",null,"CBD","Urban","Short rural","Long rural",null,"Essential Energy"]
[null,"Jemena Electricity","Jemena Electricity",82064651083,"Vic","Electricity","Distribution","Revenue cap","Calendar","December",5,5,2,"2016-20 Distribution Determination","Level 16","567 Collins Street","MELBOURNE","VIC","3000","PO Box 16182",null,"MELBOURNE","VIC",8001,"Robert McMillan","03 9173 7000","robert.mcmillan@jemena.com.au",null,null,null,"YES","NO","NO",null,"CBD","Urban","Short rural","Long rural",null,"Jemena Electricity"]
[null,"JGN","Jemena Gas Networks (NSW) Ltd","003 004 322","NSW","Gas","Distribution","Weighted average price cap","Financial","June",5,5,null,null,null,null,null,null,null,null,null,null,null,null,null,null,null,null,null,null,null,null,null,null,null,null,null,null,null,"JGN"]
[null,"Multinet Gas","Multinet Gas (DB No.1) Pty Ltd (ACN 086 026 986), Multinet Gas (DB No.2) Pty Ltd (ACN 086 230 122)","086026986","Vic","Gas","Distribution","Weighted average price cap","Calendar","December",5,5,"x",null,"6 Nexus Court",null,"MULGRAVE","Vic","3149",null,null,null,null,null,"Stephanie McDougall","03 8846 9538","Stephanie.McDougall@ue.com.au",null,null,null,null,null,null,null,null,null,null,null,null,"Multinet Gas"]
[null,"Murraylink","Murraylink",79181207909,"SA","Electricity","Transmission","Revenue cap","Financial","June",5,5,5,"transmission determination",null,null,null,null,null,null,null,null,null,null,null,null,null,null,null,null,null,null,null,null,"CBD","Urban","Short rural","Long rural",null,"Murraylink"]
[null,"Power and Water","Power and Water Corporation",15947352360,"NT","Electricity","Distribution","Revenue cap","Financial","June",11,5,"x","distribution determination","GPO Box 1921",null,"DARWIN","NT","0801","GPO Box 1921",null,"DARWIN","NT","0801",null,null,null,null,"YES","YES","YES","YES","NO"]
[null,"Powercor Australia","Powercor Australia",89064651109,"Vic","Electricity","Distribution","Revenue cap","Calendar","December",5,5,2,"2016-20 Distribution Determination","40 Market Street",null,"MELBOURNE","Vic","3000","Locked bag 14090",null,"MELBOURNE","VIC",8001,"Hannah Williams","03 9683 4088","hwilliams@powercor.com.au",null,null,null,"YES","YES","NO",null,"CBD","Urban","Short rural","Long rural",null,"Powercor Australia"]
[null,"Powerlink","Queensland Electricity Transmission Corporation Limited trading as Powerlink Queensland",82078849233,"Qld","Electricity","Transmission","Revenue cap","Financial","June",5,5,5,"transmission determination","33 Harold St",null,"VIRGINIA","Qld","4014","PO Box 1193",null,"VIRGINIA","QLD",4014,"Jennifer Harris","07 3860 2667","jharris@powerlink.com.au",null,null,null,null,null,null,null,"CBD","Urban","Short rural","Long rural",null,"Powerlink"]
[null,"Roma to Brisbane Pipeline","APT Petroleum Pipelines Limited t/a Roma to Brisbane Pipeline","009 737 393","Qld","Gas","Transmission","Weighted average price cap","Financial","June",5,5,"x","n/a",null,null,null,null,null,null,null,null,null,null,null,null,null,null,null,null,null,null,null,null,"CBD","Urban","Short rural","Long rural",null,"Roma to Brisbane Pipeline"]
[null,"SA Power Networks","SA Power Networks",13332330749,"SA","Electricity","Distribution","Revenue cap","Financial","June",5,5,5,"2015-20 Distribution Determination","1 Anzac Highway",null,"KESWICK","SA","5035","GPO Box 77",null,"ADELAIDE","SA","5000","Damien O'Connor","08 8404 5066","damien.oconnor@sapowernetworks.com.au",null,null,null,"YES","YES","NO",null,"CBD","Urban","Short rural","Long rural",null,"SA Power Networks"]
[null,"TasNetworks (D)","TasNetworks (D)",24167357299,"Tas","Electricity","Distribution","Revenue cap","Financial","June",5,5,5,"distribution determination","21 Kirksway Place",null,"HOBART","Tas","7000","GPO Box 191",null,"HOBART","Tas","7000","Leigh Mayne","03 6270 3691","rrp2012@auroraenergy.com.au",null,null,null,"YES","YES","YES",null,"Critical Infrastructure","High density commercial","Urban","High density rural","Low density rural","TasNetworks (D)"]
[null,"TasNetworks (T)","TasNetworks (T)",24167357299,"Tas","Electricity","Transmission","Revenue cap","Financial","June",5,5,5,"transmission determination","1-7 Maria Street",null,"LENAH VALLEY","Tas","7008","PO Box 606",null,"MOONAH","Tas","7009","Heath Dillon","03 6274 3664","heath.dillon@transend.com.au",null,null,null,null,null,null,null,"CBD","Urban","Short rural","Long rural",null,"TasNetworks (T)"]
[null,"TransGrid","NSW Electricity Networks Operations Pty Ltd trading as TransGrid",609169959,"NSW","Electricity","Transmission","Revenue cap","Financial","June",5,4,5,"transmission determination","180 Thomas Street",null,"SYDNEY","NSW","2000","PO Box A1000",null,"SYDNEY SOUTH","NSW","1235","Garrie Chubb","0408 210 221","garrie.chubb@transgrid.com.au",null,null,null,null,null,null,null,"CBD","Urban","Short rural","Long rural",null,"TransGrid"]
[null,"United Energy","United Energy",70064651029,"Vic","Electricity","Distribution","Revenue cap","Calendar","December",5,5,2,"2016-20 Distribution Determination","Level 3","6 Nexus Court","MULGRAVE","Vic","3149","PO Box 449",null,"MOUNT WAVERLEY","VIC",3170,"Mathew Abraham","03 8846 9758","mathew.abraham@ue.com.au",null,null,null,"YES","NO","NO",null,"CBD","Urban","Short rural","Long rural",null,"United Energy"]
[null,"Western Power (D)","Western Power (D)",18540492861,"WA","Electricity","Distribution","Revenue cap","Financial","June",12,4,"x","distribution determination","363 Wellington Street",null,"PERTH","WA","6000","GPO Box L921",null,"PERTH","WA",6842,"Judy Hunter","08 9326 6239","judy.hunter@westernpower.com.au",null,null,null,"YES","YES","NO","NO","CBD","Urban","Short rural","Long rural",null,"Western Power (D)"]
[null,"Western Power (T)","Western Power (T)",18540492861,"WA","Electricity","Transmission","Revenue cap","Financial","June",12,4,"x","transmission determination","363 Wellington Street",null,"PERTH","WA","6000","GPO Box L921",null,"PERTH","WA",6842,"Judy Hunter","08 9326 6239","judy.hunter@westernpower.com.au",null,null,null,"YES","YES","NO",null,"CBD","Urban","Short rural","Long rural",null,"Western Power (T)"]
[]
[]
[null,null,null,null,null,null,null,null,null,null,null,null,null,null,null,null,null,null,null,null,null,null,"For EB & Reset RINs only",null,null,null,null,null,"For AARs only"]
[null,"The Reg Year Ending (dms_RYE) must be set to the last year of the regulatory period. For forecast data is is usually (FRCP_y5) for actual it is a single year (CRY). For historical actual data the RYE will need to be set manually in the business details sheet by setting the dms_Multiyear_flag to 1 and putting the correct value in 'dms_Specified_FinalYear. See cells C67:C68",null,null,null,null,{"$f":"IF(dms_RPT=\"financial\",VALUE(LEFT(CRCP_y1,4)-1)&\"-\"&TEXT(VALUE(RIGHT(CRCP_y1,2)-1),\"00\"),VALUE(LEFT(CRCP_y1,4)-1))","v":"2007-08"},null,null,null,null,null,null,"Drop down selector box for CA & Reset RINs.","For CA & Reset RINs only",null,null,null,null,null,null,null,"for DNSP only",null,null,null,null,null,"For DNSPs only",null,null,null,null,null,"Reason for interruption","dms_Reason_Interruption_Detailed","dms_Reason_Interruption"]
[null,"dms_Model_List ","DELETE NR 'CRY' IF NOT AN ANNUAL RIN (EB, CA , ARR)",null,"dms_RYE_Formula_Result",null,null,null,null,null,null,null,null,"dms_0203_ProjectType","dms_020303_01_UOM","dms_020501_01_UOM","dms_020501_02_UOM","dms_020501_03_UOM","dms_020501_04_UOM","dms_020603_01_UOM","dms_040102_01_UOM","dms_040102_04_UOM","dms_030601_01_UOM","dms_030601_02_UOM","dms_030701_01_UOM","dms_030702_01_UOM","dms_030703_01_UOM",null,"dms_030605_UOM","dms_03060703_UOM",null,null,null,null,"Animal","Animal impact","Animal"]
[null,"ARR","ANNUAL REPORTING STATEMENT",null,{"$f":"LEFT(dms_SingleYear_FinalYear_Result,2)&RIGHT(dms_SingleYear_FinalYear_Result,2)","v":"2009"},"=LEFT(dms_SingleYear_FinalYear_Result,2)&RIGHT(dms_SingleYear_FinalYear_Result,2)",null,"Formula errors are OK",null,null,null,null,null,"New line on new route - single circuit","Circuit line length in km","0's","0's","0's","0's","0's","0's","days","minutes/customer","minutes/customer","Customer / km","%","km",null,"number","number",null,null,null,null,null,"Animal nesting/burrowing, etc and other","Asset failure"]
[null,"CA","CATEGORY ANALYSIS",null,{"$f":"LEFT(dms_SingleYear_FinalYear_Result,2)&RIGHT(dms_SingleYear_FinalYear_Result,2)","v":"2009"},"=LEFT(dms_SingleYear_FinalYear_Result,2)&RIGHT(dms_SingleYear_FinalYear_Result,2)",null,"Formula errors are OK",null,null,null,null,null,"New line on new route - dual circuit","Circuit line length in km","0's","0's","0's","0's","0's","0's","0's","minutes/customer","minutes/customer","MWh/customer","Number of spans",null,null,"number","number",null,null,null,null,null,"Other","Other"]
[null,"CPI","CPI",null,null,null,null,null,null,null,null,null,null,"New line on new route - other","Circuit line length in km","MVA added","MVA added","MVA added","MVA added","0's","0's","$0s","interruptions/customer","interruptions/customer","kVA / customer","Number of spans",null,null,"number","number",null,null,null,null,"Asset failure","LV","Overloads"]
[null,"EB","ECONOMIC BENCHMARKING",null,{"$f":"LEFT(dms_SingleYear_FinalYear_Result,2)&RIGHT(dms_SingleYear_FinalYear_Result,2)","v":"2009"},"=LEFT(dms_SingleYear_FinalYear_Result,2)&RIGHT(dms_SingleYear_FinalYear_Result,2)",null,"Formula errors are OK",null,null,null,null,null,"Line rebuild over existing route - single circuit","Circuit line length in km","0's","0's","0's","0's","0's","$0s","0's","interruptions/customer","interruptions/customer",null,"Number of spans",null,null,"number","number",null,null,null,null,null,"Distribution substation","Planned"]
[null,"PTRM","POST TAX REVENUE MODEL",null,{"$f":"LEFT(dms_MultiYear_FinalYear_Result,2)&RIGHT(dms_MultiYear_FinalYear_Result,2)","v":"2017"},"=LEFT(dms_MultiYear_FinalYear_Result,2)&RIGHT(dms_MultiYear_FinalYear_Result,2)",null,null,null,null,null,null,null,"Line rebuild over existing route - dual circuit","Number","total spend $0s","total spend $0s","total spend $0s","total spend $0s","(per cent)",null,null,null,null,null,"Number of spans",null,null,"number","(per cent)",null,null,null,null,null,"HV","Network business"]
[null,"Reset","REGULATORY REPORTING STATEMENT",null,{"$f":"LEFT(dms_MultiYear_FinalYear_Result,2)&RIGHT(dms_MultiYear_FinalYear_Result,2)","v":"2017"},"=LEFT(dms_MultiYear_FinalYear_Result,2)&RIGHT(dms_MultiYear_FinalYear_Result,2)",null,"Formula errors are OK",null,null,null,null,null,"Reconductor - Single circuit","Number","net circuit km added","net circuit km added","net circuit km added","net circuit km added",null,null,null,null,null,null,"Years",null,null,"number",null,null,null,null,null,null,"Zone substation","Third party"]
[null,"RFM","ROLL FORWARD MODEL",null,{"$f":"LEFT(dms_CRCP_FinalYear_Result,2)&RIGHT(dms_CRCP_FinalYear_Result,2)","v":"2017"},"=LEFT(dms_CRCP_FinalYear_Result,2)&RIGHT(dms_CRCP_FinalYear_Result,2)",null,null,null,null,null,null,null,"Reconductor - Dual circuit","Number","total spend $0s","total spend $0s","total spend $0s","total spend $0s",null,null,null,null,null,null,"Years",null,null,"number",null,null,null,null,null,null,"Subtransmission","Unknown"]
[null,"WACC","WEIGHTED AVERAGE COST OF CAPITAL",null,{"$f":"LEFT(dms_MultiYear_FinalYear_Result,2)&RIGHT(dms_MultiYear_FinalYear_Result,2)","v":"2017"},"=LEFT(dms_MultiYear_FinalYear_Result,2)&RIGHT(dms_MultiYear_FinalYear_Result,2)",null,null,null,null,null,null,null,"Other",null,"net circuit km added","net circuit km added","net circuit km added","net circuit km added",null,null,null,null,null,null,"Trees",null,null,"number",null,null,null,null,null,"Other","insert description of 'other'","Vegetation"]
[null,null,null,null,null,null,null,null,null,null,null,null,null,null,null,"total spend $0s","total spend $0s","total spend $0s","total spend $0s",null,null,null,null,null,null,"Trees",null,null,"number",null,null,null,null,null,"Overloads","-","Weather"]
[null,"dms_DataQuality_List",null,null,null,null,null,null,null,null,null,null,null,null,null,"0's",null,"$0s",null,null,null,null,null,null,null,"Defects",null,null,"number",null,null,null,null,null,"Planned","-","2 - STPIS Exclusion (3.3)(a)"]
[null,"Actual",null,null,null,null,null,null,null,null,null,null,null,null,null,"0's",null,null,null,null,null,null,null,null,null,"Defects",null,null,"number",null,null,null,null,null,"Network business","Network error","3 - STPIS Exclusion (3.3)(a)"]
[null,"Estimate",null,null,null,null,null,null,null,null,null,null,null,null,null,"0's",null,null,null,null,null,null,null,null,null,"Spans",null,null,"number",null,null,null,null,null,null,"Switching and protection error","4 - STPIS Exclusion (3.3)(a)"]
[null,"Consolidated",null,null,null,null,null,null,null,null,null,null,null,null,null,"$0s",null,null,null,null,null,null,null,null,null,"km",null,null,"(per cent)",null,null,null,null,null,"Third party","Fire","5 - STPIS Exclusion (3.3)(a)"]
[null,"Recast",null,null,null,null,null,null,null,null,null,null,null,null,null,null,null,null,null,null,null,null,null,null,null,"Spans",null,null,"(per cent)","",null,null,null,null,null,"Other","6 - STPIS Exclusion (3.3)(a)"]
[null,"Public",null,null,null,null,null,null,null,null,null,null,null,null,null,null,null,null,null,null,null,null,null,null,null,null,null,null,null,null,null,null,null,null,null,"Dig-in","7 - STPIS Exclusion (3.3)(a)"]
[null,null,null,null,null,null,null,null,null,null,null,null,null,null,null,null,null,null,null,null,null,null,null,null,null,null,null,null,null,null,null,null,null,null,null,"Unauthorised access"]
[null,"For all files either AER or business needs to be able to specify the type of submission","For PTRM & RFM templates we must provide a choice in case they change their form of control - otherwise it is drawn from the business specific lookup table above.",null,null,null,null,null,null,null,null,null,null,null,"For PTRM files - this field set the text for the named range \"DMS_Xfactor\" which in all cases is simply the text \"x factors\" - this saves putting in each old gas PTRM file ",null,null,null,null,null,null,null,"for TNSP only",null,null,null,null,null,null,null,null,null,null,null,null,"Vehicle impact"]
[null,"dms_SourceList","dms_FormControl_Choices",null,null,null,null,null,null,null,null,null,null,null,"DMS_Xfactor",null,null,null,null,null,null,null,"dms_030601_01_UOM",null,"dms_030701_01_UOM","dms_030702_01_UOM",null,null,null,null,null,null,null,null,"Unknown","Unknown"]
[null,"After appeal","Revenue cap",null,null,null,null,null,null,null,null,null,null,null,"x factors",null,null,null,null,null,null,null,"%",null,"Number of spans","km",null,null,null,null,null,null,null,null,"Vegetation","Blow-in/Fall-in - NSP responsibility"]
[null,"Draft decision","Revenue yield",null,null,null,null,null,null,null,null,null,null,null,null,null,null,null,null,null,null,null,"number",null,"Years","%",null,null,null,null,null,null,null,null,null,"Grow-in - NSP responsibility"]
[null,"Final decision","Weighted average price cap",null,null,null,null,null,null,null,null,null,null,null,null,null,null,null,null,null,null,null,"number",null,"Trees","km",null,null,null,null,null,null,null,null,null,"Blow-in/Fall-in - Other responsible party"]
[null,"PTRM update 1",null,null,null,null,null,null,null,null,null,null,null,null,null,null,null,null,null,null,null,null,"%",null,"Defects","number",null,null,null,null,null,null,null,null,null,"Grow-in - Other responsible party"]
[null,"PTRM update 2",null,null,null,null,null,null,null,null,null,null,null,null,null,null,null,null,null,null,null,null,"number",null,"Number of spans",null,null,null,null,null,null,null,null,null,"Weather"]
[null,"PTRM update 3",null,null,null,null,null,null,null,null,null,null,null,null,null,null,null,null,null,null,null,null,"number",null,"km",null,null,null,null,null,null,null,null,null,"2 - STPIS Exclusion (3.3)(a)"]
[null,"PTRM update 4",null,null,null,null,null,null,null,null,null,null,null,null,null,null,null,null,null,null,null,null,"%",null,"km",null,null,null,null,null,null,null,null,null,"3 - STPIS Exclusion (3.3)(a)"]
[null,"PTRM update 5",null,null,null,null,null,null,null,null,null,null,null,null,null,null,null,null,null,null,null,null,"number",null,"Number of spans",null,null,null,null,null,null,null,null,null,"4 - STPIS Exclusion (3.3)(a)"]
[null,"PTRM update 6",null,null,null,null,null,null,null,null,null,null,null,null,null,null,null,null,null,null,null,null,"number",null,null,null,null,null,null,null,null,null,null,null,"5 - STPIS Exclusion (3.3)(a)"]
[null,"PTRM update 7",null,null,null,null,null,null,null,null,null,null,null,null,null,null,null,null,null,null,null,null,"%",null,null,null,null,null,null,null,null,null,null,null,"6 - STPIS Exclusion (3.3)(a)"]
[null,"Regulatory proposal",null,null,null,null,null,null,null,null,null,null,null,null,null,null,null,null,null,null,null,null,"number",null,null,null,null,null,null,null,null,null,null,null,"7 - STPIS Exclusion (3.3)(a)"]
[null,"Reporting",null,null,null,null,null,null,null,null,null,null,null,null,null,null,null,null,null,null,null,null,"%"]
[null,"Revised regulatory proposal",null,null,null,null,null,null,null,null,null,null,null,null,null,null,null,null,null,null,null,null,"number"]
[null,null,null,null,null,null,null,null,null,null,null,null,null,null,null,null,null,null,null,null,null,null,"%"]
[null,null,null,null,null,null,null,null,null,null,null,null,null,null,null,null,null,null,null,null,null,null,"number"]
[]
[]
[]
[null,"These are indeces and lookup values for various dates. All step from the value placed in FRCP_y1 on the business and other details worksheet",null,null,null,null,null,null,null,null,null,"These date tables are currently used in the Recast templates to provide column headings and conditional formatting"]
[null,"dms_FRCPlength_Num_List","dms_FinalYear_List","dms_CRCPlength_Num_List","dms_CFinalYear_List","dms_FRCP_years",null,"dms_CRCP_years",null,"dms_CRCP_index",null,"CRY from input cell on business sheet","CRY - financial","dms_FinYears","CRY calendar","dms_CalYears"]
[null,1,"dms_FRCP_y1",1,"CRCP_y1",{"$f":"FRCP_y1","v":"2019-20"},"dms_FRCP_y1",{"$f":"IF(dms_RPT=\"financial\",VALUE(LEFT(dms_FRCP_y1,4)-1)&\"-\"&TEXT(VALUE(MID(dms_FRCP_y1,3,2)),\"00\"),VALUE(LEFT(dms_FRCP_y1,4)-1))","v":"2018-19"},"dms_CRCP_yZ",1,null,{"$f":"CRY","v":"2008-09"},{"$f":"VALUE(LEFT(CRY,4))&\"-\"&TEXT(MID(CRY,3,2)+1,\"00\")","v":"2008-09"},"dms_CRYf_y1",{"$f":"VALUE(LEFT(CRY,4)+1)","v":2009},"dms_CRYc_y1"]
[null,2,"dms_FRCP_y2",2,"CRCP_y2",{"$f":"IF(dms_RPT=\"financial\",VALUE(LEFT(dms_FRCP_y1,4)+1)&\"-\"&TEXT(VALUE(RIGHT(dms_FRCP_y1,2)+1),\"00\"),VALUE(LEFT(dms_FRCP_y1,4)+1))","v":"2020-21"},"dms_FRCP_y2",{"$f":"IF(dms_RPT=\"financial\",VALUE(LEFT(dms_CRCP_yZ,4)-1)&\"-\"&TEXT(VALUE(MID(dms_CRCP_yZ,3,2)),\"00\"),VALUE(LEFT(dms_CRCP_yZ,4)-1))","v":"2017-18"},"dms_CRCP_yY",2,null,null,{"$f":"VALUE(LEFT(dms_CRYf_y1,4)+1)&\"-\"&TEXT(MID(dms_CRYf_y1,3,2)+2,\"00\")","v":"2009-10"},"dms_CRYf_y2",{"$f":"VALUE(LEFT(dms_CRYc_y1,4)+1)","v":2010},"dms_CRYc_y2"]
[null,3,"dms_FRCP_y3",3,"CRCP_y3",{"$f":"IF(dms_RPT=\"financial\",VALUE(LEFT(dms_FRCP_y2,4)+1)&\"-\"&TEXT(VALUE(RIGHT(dms_FRCP_y2,2)+1),\"00\"),VALUE(LEFT(dms_FRCP_y2,4)+1))","v":"2021-22"},"dms_FRCP_y3",{"$f":"IF(dms_RPT=\"financial\",VALUE(LEFT(dms_CRCP_yY,4)-1)&\"-\"&TEXT(VALUE(MID(dms_CRCP_yY,3,2)),\"00\"),VALUE(LEFT(dms_CRCP_yY,4)-1))","v":"2016-17"},"dms_CRCP_yX",3,null,null,{"$f":"VALUE(LEFT(dms_CRYf_y2,4)+1)&\"-\"&TEXT(MID(dms_CRYf_y2,3,2)+2,\"00\")","v":"2010-11"},"dms_CRYf_y3",{"$f":"VALUE(LEFT(dms_CRYc_y2,4)+1)","v":2011},"dms_CRYc_y3"]
[null,4,"dms_FRCP_y4",4,"CRCP_y4",{"$f":"IF(dms_RPT=\"financial\",VALUE(LEFT(dms_FRCP_y3,4)+1)&\"-\"&TEXT(VALUE(RIGHT(dms_FRCP_y3,2)+1),\"00\"),VALUE(LEFT(dms_FRCP_y3,4)+1))","v":"2022-23"},"dms_FRCP_y4",{"$f":"IF(dms_RPT=\"financial\",VALUE(LEFT(dms_CRCP_yX,4)-1)&\"-\"&TEXT(VALUE(MID(dms_CRCP_yX,3,2)),\"00\"),VALUE(LEFT(dms_CRCP_yX,4)-1))","v":"2015-16"},"dms_CRCP_yW",4,null,null,{"$f":"VALUE(LEFT(dms_CRYf_y3,4)+1)&\"-\"&TEXT(MID(dms_CRYf_y3,3,2)+2,\"00\")","v":"2011-12"},"dms_CRYf_y4",{"$f":"VALUE(LEFT(dms_CRYc_y3,4)+1)","v":2012},"dms_CRYc_y4"]
[null,5,"dms_FRCP_y5",5,"CRCP_y5",{"$f":"IF(dms_RPT=\"financial\",VALUE(LEFT(dms_FRCP_y4,4)+1)&\"-\"&TEXT(VALUE(RIGHT(dms_FRCP_y4,2)+1),\"00\"),VALUE(LEFT(dms_FRCP_y4,4)+1))","v":"2023-24"},"dms_FRCP_y5",{"$f":"IF(dms_RPT=\"financial\",VALUE(LEFT(dms_CRCP_yW,4)-1)&\"-\"&TEXT(VALUE(MID(dms_CRCP_yW,3,2)),\"00\"),VALUE(LEFT(dms_CRCP_yW,4)-1))","v":"2014-15"},"dms_CRCP_yV",5,null,null,{"$f":"VALUE(LEFT(dms_CRYf_y4,4)+1)&\"-\"&TEXT(MID(dms_CRYf_y4,3,2)+2,\"00\")","v":"2012-13"},"dms_CRYf_y5",{"$f":"VALUE(LEFT(dms_CRYc_y4,4)+1)","v":2013},"dms_CRYc_y5"]
[null,6,"dms_FRCP_y6",6,"CRCP_y6",{"$f":"IF(dms_RPT=\"financial\",VALUE(LEFT(dms_FRCP_y5,4)+1)&\"-\"&TEXT(VALUE(RIGHT(dms_FRCP_y5,2)+1),\"00\"),VALUE(LEFT(dms_FRCP_y5,4)+1))","v":"2024-25"},"dms_FRCP_y6",{"$f":"IF(dms_RPT=\"financial\",VALUE(LEFT(dms_CRCP_yV,4)-1)&\"-\"&TEXT(VALUE(MID(dms_CRCP_yV,3,2)),\"00\"),VALUE(LEFT(dms_CRCP_yV,4)-1))","v":"2013-14"},"dms_CRCP_yU",6,null,null,{"$f":"VALUE(LEFT(dms_CRYf_y5,4)+1)&\"-\"&TEXT(MID(dms_CRYf_y5,3,2)+2,\"00\")","v":"2013-14"},"dms_CRYf_y6",{"$f":"VALUE(LEFT(dms_CRYc_y5,4)+1)","v":2014},"dms_CRYc_y6"]
[null,7,"dms_FRCP_y7",7,"CRCP_y7",{"$f":"IF(dms_RPT=\"financial\",VALUE(LEFT(dms_FRCP_y6,4)+1)&\"-\"&TEXT(VALUE(RIGHT(dms_FRCP_y6,2)+1),\"00\"),VALUE(LEFT(dms_FRCP_y6,4)+1))","v":"2025-26"},"dms_FRCP_y7",{"$f":"IF(dms_RPT=\"financial\",VALUE(LEFT(dms_CRCP_yU,4)-1)&\"-\"&TEXT(VALUE(MID(dms_CRCP_yU,3,2)),\"00\"),VALUE(LEFT(dms_CRCP_yU,4)-1))","v":"2012-13"},"dms_CRCP_yT",7,null,null,{"$f":"VALUE(LEFT(dms_CRYf_y6,4)+1)&\"-\"&TEXT(MID(dms_CRYf_y6,3,2)+2,\"00\")","v":"2014-15"},"dms_CRYf_y7",{"$f":"VALUE(LEFT(dms_CRYc_y6,4)+1)","v":2015},"dms_CRYc_y7"]
[null,8,"dms_FRCP_y8",8,"CRCP_y8",{"$f":"IF(dms_RPT=\"financial\",VALUE(LEFT(dms_FRCP_y7,4)+1)&\"-\"&TEXT(VALUE(RIGHT(dms_FRCP_y7,2)+1),\"00\"),VALUE(LEFT(dms_FRCP_y7,4)+1))","v":"2026-27"},"dms_FRCP_y8",{"$f":"IF(dms_RPT=\"financial\",VALUE(LEFT(dms_CRCP_yT,4)-1)&\"-\"&TEXT(VALUE(MID(dms_CRCP_yT,3,2)),\"00\"),VALUE(LEFT(dms_CRCP_yT,4)-1))","v":"2011-12"},"dms_CRCP_yS",8,null,null,{"$f":"VALUE(LEFT(dms_CRYf_y7,4)+1)&\"-\"&TEXT(MID(dms_CRYf_y7,3,2)+2,\"00\")","v":"2015-16"},"dms_CRYf_y8",{"$f":"VALUE(LEFT(dms_CRYc_y7,4)+1)","v":2016},"dms_CRYc_y8"]
[null,9,"dms_FRCP_y9",9,"CRCP_y9",{"$f":"IF(dms_RPT=\"financial\",VALUE(LEFT(dms_FRCP_y8,4)+1)&\"-\"&TEXT(VALUE(RIGHT(dms_FRCP_y8,2)+1),\"00\"),VALUE(LEFT(dms_FRCP_y8,4)+1))","v":"2027-28"},"dms_FRCP_y9",{"$f":"IF(dms_RPT=\"financial\",VALUE(LEFT(dms_CRCP_yS,4)-1)&\"-\"&TEXT(VALUE(MID(dms_CRCP_yS,3,2)),\"00\"),VALUE(LEFT(dms_CRCP_yS,4)-1))","v":"2010-11"},"dms_CRCP_yR",9,null,null,{"$f":"VALUE(LEFT(dms_CRYf_y8,4)+1)&\"-\"&TEXT(MID(dms_CRYf_y8,3,2)+2,\"00\")","v":"2016-17"},"dms_CRYf_y9",{"$f":"VALUE(LEFT(dms_CRYc_y8,4)+1)","v":2017},"dms_CRYc_y9"]
[null,10,"dms_FRCP_y10",10,"CRCP_y10",{"$f":"IF(dms_RPT=\"financial\",VALUE(LEFT(dms_FRCP_y9,4)+1)&\"-\"&TEXT(VALUE(RIGHT(dms_FRCP_y9,2)+1),\"00\"),VALUE(LEFT(dms_FRCP_y9,4)+1))","v":"2028-29"},"dms_FRCP_y10",{"$f":"IF(dms_RPT=\"financial\",VALUE(LEFT(dms_CRCP_yR,4)-1)&\"-\"&TEXT(VALUE(MID(dms_CRCP_yR,3,2)),\"00\"),VALUE(LEFT(dms_CRCP_yR,4)-1))","v":"2009-10"},"dms_CRCP_yQ",10,null,null,{"$f":"VALUE(LEFT(dms_CRYf_y9,4)+1)&\"-\"&TEXT(MID(dms_CRYf_y9,3,2)+2,\"00\")","v":"2017-18"},"dms_CRYf_y10",{"$f":"VALUE(LEFT(dms_CRYc_y9,4)+1)","v":2018},"dms_CRYc_y10"]
[null,11,"dms_FRCP_y11",11,"CRCP_y11",{"$f":"IF(dms_RPT=\"financial\",VALUE(LEFT(dms_FRCP_y10,4)+1)&\"-\"&TEXT(VALUE(RIGHT(dms_FRCP_y10,2)+1),\"00\"),VALUE(LEFT(dms_FRCP_y10,4)+1))","v":"2029-30"},"dms_FRCP_y11",{"$f":"IF(dms_RPT=\"financial\",VALUE(LEFT(dms_CRCP_yQ,4)-1)&\"-\"&TEXT(VALUE(MID(dms_CRCP_yQ,3,2)),\"00\"),VALUE(LEFT(dms_CRCP_yQ,4)-1))","v":"2008-09"},"dms_CRCP_yP",11,null,null,{"$f":"VALUE(LEFT(dms_CRYf_y10,4)+1)&\"-\"&TEXT(MID(dms_CRYf_y10,3,2)+2,\"00\")","v":"2018-19"},"dms_CRYf_y11",{"$f":"VALUE(LEFT(dms_CRYc_y10,4)+1)","v":2019},"dms_CRYc_y11"]
[null,12,"dms_FRCP_y12",12,"CRCP_y12",{"$f":"IF(dms_RPT=\"financial\",VALUE(LEFT(dms_FRCP_y11,4)+1)&\"-\"&TEXT(VALUE(RIGHT(dms_FRCP_y11,2)+1),\"00\"),VALUE(LEFT(dms_FRCP_y11,4)+1))","v":"2030-31"},"dms_FRCP_y12",{"$f":"IF(dms_RPT=\"financial\",VALUE(LEFT(dms_CRCP_yP,4)-1)&\"-\"&TEXT(VALUE(MID(dms_CRCP_yP,3,2)),\"00\"),VALUE(LEFT(dms_CRCP_yP,4)-1))","v":"2007-08"},"dms_CRCP_yO",12,null,null,{"$f":"VALUE(LEFT(dms_CRYf_y11,4)+1)&\"-\"&TEXT(MID(dms_CRYf_y11,3,2)+2,\"00\")","v":"2019-20"},"dms_CRYf_y12",{"$f":"VALUE(LEFT(dms_CRYc_y11,4)+1)","v":2020},"dms_CRYc_y12"]
[null,13,"dms_FRCP_y13",13,"CRCP_y13",{"$f":"IF(dms_RPT=\"financial\",VALUE(LEFT(dms_FRCP_y12,4)+1)&\"-\"&TEXT(VALUE(RIGHT(dms_FRCP_y12,2)+1),\"00\"),VALUE(LEFT(dms_FRCP_y12,4)+1))","v":"2031-32"},"dms_FRCP_y13",{"$f":"IF(dms_RPT=\"financial\",VALUE(LEFT(dms_CRCP_yO,4)-1)&\"-\"&TEXT(VALUE(MID(dms_CRCP_yO,3,2)),\"00\"),VALUE(LEFT(dms_CRCP_yO,4)-1))","v":"2006-07"},"dms_CRCP_yN",13,null,null,{"$f":"VALUE(LEFT(dms_CRYf_y12,4)+1)&\"-\"&TEXT(MID(dms_CRYf_y12,3,2)+2,\"00\")","v":"2020-21"},"dms_CRYf_y13",{"$f":"VALUE(LEFT(dms_CRYc_y12,4)+1)","v":2021},"dms_CRYc_y13"]
[null,14,"dms_FRCP_y14",14,"CRCP_y14",{"$f":"IF(dms_RPT=\"financial\",VALUE(LEFT(dms_FRCP_y13,4)+1)&\"-\"&TEXT(VALUE(RIGHT(dms_FRCP_y13,2)+1),\"00\"),VALUE(LEFT(dms_FRCP_y13,4)+1))","v":"2032-33"},"dms_FRCP_y14",{"$f":"IF(dms_RPT=\"financial\",VALUE(LEFT(dms_CRCP_yN,4)-1)&\"-\"&TEXT(VALUE(MID(dms_CRCP_yN,3,2)),\"00\"),VALUE(LEFT(dms_CRCP_yN,4)-1))","v":"2005-06"},"dms_CRCP_yM",14,null,null,{"$f":"VALUE(LEFT(dms_CRYf_y13,4)+1)&\"-\"&TEXT(MID(dms_CRYf_y13,3,2)+2,\"00\")","v":"2021-22"},"dms_CRYf_y14",{"$f":"VALUE(LEFT(dms_CRYc_y13,4)+1)","v":2022},"dms_CRYc_y14"]
[null,15,"dms_FRCP_y15",15,"CRCP_y15",{"$f":"IF(dms_RPT=\"financial\",VALUE(LEFT(dms_FRCP_y14,4)+1)&\"-\"&TEXT(VALUE(RIGHT(dms_FRCP_y14,2)+1),\"00\"),VALUE(LEFT(dms_FRCP_y14,4)+1))","v":"2033-34"},"dms_FRCP_y15",{"$f":"IF(dms_RPT=\"financial\",VALUE(LEFT(dms_CRCP_yM,4)-1)&\"-\"&TEXT(VALUE(MID(dms_CRCP_yM,3,2)),\"00\"),VALUE(LEFT(dms_CRCP_yM,4)-1))","v":"2004-05"},"dms_CRCP_yL",15,null,null,{"$f":"VALUE(LEFT(dms_CRYf_y14,4)+1)&\"-\"&TEXT(MID(dms_CRYf_y14,3,2)+2,\"00\")","v":"2022-23"},"dms_CRYf_y15",{"$f":"VALUE(LEFT(dms_CRYc_y14,4)+1)","v":2023},"dms_CRYc_y15"]
[null,null,null,null,null,null,null,null,null,null,null,null,{"$f":"VALUE(LEFT(dms_CRYf_y15,4)+1)&\"-\"&TEXT(MID(dms_CRYf_y15,3,2)+2,\"00\")","v":"2023-24"},"dms_CRYf_y16",{"$f":"VALUE(LEFT(dms_CRYc_y15,4)+1)","v":2024},"dms_CRYc_y16"]
[null,"These are drop down lists for businesses to select the correct FRCP_y1 on the business and other details worksheet.\nThis also populates the column headings in the worksheets",null,null,null,null,null,null,null,null,null,null,{"$f":"VALUE(LEFT(dms_CRYf_y16,4)+1)&\"-\"&TEXT(MID(dms_CRYf_y16,3,2)+2,\"00\")","v":"2024-25"},"dms_CRYf_y17",{"$f":"VALUE(LEFT(dms_CRYc_y16,4)+1)","v":2025},"dms_CRYc_y17"]
[null,"dms_RCP_fyear_list","dms_CRY_ListF","dms_CRY_ListC","dms_RCP_cyear_list","dms_FRCP_fyear_list","dms_FRCP_ListF","dms_FRCP_ListC","dms_FRCP_cyear_list",null,null,null,{"$f":"VALUE(LEFT(dms_CRYf_y17,4)+1)&\"-\"&TEXT(MID(dms_CRYf_y17,3,2)+2,\"00\")","v":"2025-26"},"dms_CRYf_y18",{"$f":"VALUE(LEFT(dms_CRYc_y17,4)+1)","v":2026},"dms_CRYc_y18"]
[null,"dms_fy1","2005-06","2006","dms_cy1","dms_frcp_fy1","2016-17","2017","dms_crcp_cy1",null,null,null,{"$f":"VALUE(LEFT(dms_CRYf_y18,4)+1)&\"-\"&TEXT(MID(dms_CRYf_y18,3,2)+2,\"00\")","v":"2026-27"},"dms_CRYf_y19",{"$f":"VALUE(LEFT(dms_CRYc_y18,4)+1)","v":2027},"dms_CRYc_y19"]
[null,"dms_fy2","2006-07",2007,"dms_cy2","dms_frcp_fy2","2017-18","2018","dms_crcp_cy2",null,null,null,{"$f":"VALUE(LEFT(dms_CRYf_y19,4)+1)&\"-\"&TEXT(MID(dms_CRYf_y19,3,2)+2,\"00\")","v":"2027-28"},"dms_CRYf_y20",{"$f":"VALUE(LEFT(dms_CRYc_y19,4)+1)","v":2028},"dms_CRYc_y20"]
[null,"dms_fy3","2007-08","2008","dms_cy3","dms_frcp_fy3","2018-19","2019","dms_crcp_cy3"]
[null,"dms_fy4","2008-09","2009","dms_cy4","dms_frcp_fy4","2019-20","2020","dms_crcp_cy4"]
[null,"dms_fy5","2009-10","2010","dms_cy5","dms_frcp_fy5","2020-21","2021","dms_crcp_cy5"]
[null,"dms_fy6","2010-11","2011","dms_cy6","dms_frcp_fy6","2021-22","2022","dms_crcp_cy6"]
[null,"dms_fy7","2011-12","2012","dms_cy7","dms_frcp_fy7","2022-23","2023","dms_crcp_cy7"]
[null,"dms_fy8","2012-13","2013","dms_cy8","dms_frcp_fy8","2023-24","2024","dms_crcp_cy8",null,null,"2005-06","2006"]
[null,"dms_fy9","2013-14","2014","dms_cy9","dms_frcp_fy9","2024-25","2025","dms_crcp_cy9",null,null,"2006-07","2007"]
[null,"dms_fy10","2014-15","2015","dms_cy10","dms_frcp_fy10","2025-26","2026","dms_crcp_cy10",null,null,"2007-08","2008"]
[null,"dms_fy11","2015-16","2016","dms_cy11","dms_frcp_fy11","2026-27","2027","dms_crcp_cy11",null,null,"2008-09","2009"]
[null,"dms_fy12","2016-17","2017","dms_cy12","dms_frcp_fy12","2027-28","2028","dms_crcp_cy12",null,null,"2009-10",2010]
[null,"dms_fy13","2017-18","2018","dms_cy13","dms_frcp_fy13","2028-29","2029","dms_crcp_cy13",null,null,"2010-11",2011]
[null,"dms_fy14","2018-19",2019,"dms_cy14","dms_frcp_fy14","2029-30","2030","dms_crcp_cy14",null,null,"2011-12",2012]
[null,"dms_fy15","2019-20","2020","dms_cy15","dms_frcp_fy15","2030-31","2031","dms_crcp_cy15",null,null,"2012-13",2013]
[null,"dms_fy16","2019-20","2020","dms_cy16",null,null,null,null,null,null,"2013-14",2014]
[null,"dms_fy17","2020-21","2021","dms_cy17",null,null,null,null,null,null,"2014-15",2015]
[null,"dms_fy18","2021-22","2022","dms_cy18",null,null,null,null,null,null,"2015-16",2016]
[null,"dms_fy19","2022-23","2023","dms_cy19",null,null,null,null,null,null,"2016-17",2017]
[null,"dms_fy20","2023-24","2024","dms_cy20",null,null,null,null,null,null,"2017-18",2018]
[null,null,null,null,null,null,null,null,null,null,null,"2018-19",2019]
[null,null,null,null,null,null,null,null,null,null,null,"2019-20",2020]
[null,null,null,null,null,null,null,null,null,null,null,"2020-21",2021]
[null,null,null,null,null,null,null,null,null,null,null,"2021-22",2022]
[null,null,null,null,null,null,null,null,null,null,null,"2022-23",2023]
[null,null,null,null,null,null,null,null,null,null,null,"2023-24",2024]
[null,null,null,null,null,null,null,null,null,null,null,"2024-25",2025]
[null,null,null,null,null,null,null,null,null,null,null,"2025-26",2026]
[null,null,null,null,null,null,null,null,null,null,null,"2026-27",2027]
[null,null,null,null,null,null,null,null,null,null,null,"2027-28",2028]
[null,null,null,null,null,null,null,null,null,null,null,"2028-29",2029]
[null,null,null,null,null,null,null,null,null,null,null,"2029-30",2030]
[null,null,null,null,null,null,null,null,null,null,null,"2030-31",2031]
[null,null,null,null,null,null,null,null,null,null,null,"2031-32",2032]
[null,null,null,null,null,null,null,null,null,null,null,"2032-33",2033]
[null,null,null,null,null,null,null,null,null,null,null,"2033-34",2034]
[null,null,null,null,null,null,null,null,null,null,null,"2034-35",2035]
[null,null,null,null,null,null,null,null,null,null,null,"2035-36",2036]

{"sheet":"Contents","index":1,"n_rows":7,"n_cols":12,"rows_kept":7,"cut":false,"hidden":false,"merged":[]}
[null,"REGULATORY REPORTING STATEMENT"]
[null,{"$f":"INDEX(dms_TradingNameFull_List,MATCH(dms_TradingName,dms_TradingName_List))","v":"Endeavour Energy"}]
[null,"NEW HISTORICAL DATA  2008-09 to 2016-17"]
[null,"CONTENTS"]
[]
[]
[null,null,null,null,"1. Business details",null,null,null,null,null,null,"2. Expenditure"]

{"sheet":"Instructions","index":2,"n_rows":27,"n_cols":4,"rows_kept":27,"cut":false,"hidden":false,"merged":[[25,2,25,3],[26,2,26,4],[7,2,7,3],[1,1,1,5],[2,1,2,5],[3,2,3,4],[4,2,4,4],[5,2,5,4],[24,2,24,4],[12,2,12,4],[8,2,8,4],[10,2,10,4],[20,2,20,4],[22,2,22,4]]}
[]
[null,{"$f":"CONCATENATE(dms_Segment,\" Network Service Provider\")","v":"Distribution Network Service Provider"}]
[null,"Historical Reporting RIN Template"]
[null,null,{"$f":"CONCATENATE(\"This template is to be used by \",dms_TradingName,\" to fulfil its reporting obligations to the AER.\")","v":"This template is to be used by Endeavour Energy to fulfil its reporting obligations to the AER."}]
[null,null,"INSTRUCTIONS"]
[null,null,"Complete the Business & other details worksheet before entering data or values in any other worksheets. The Business & other details worksheet is linked to other worksheets within the workbook and automatically generates certain column headings and conditional formatting."]
[]
[null,null,"Identifying CONFIDENTIAL INFORMATION:\n\nPlease use the macro at the top of each \nworksheet to identify confidential information. \n\n"]
[null,null,"-Do this by selecting the cell or cells that contain confidential information and then run the Mark selection CONFIDENTIAL macro. This will format the cells a specific colour that is identified by the AER's database which in turn marks that information as confidential.\n\n-To reverse this, select the cell or cells and run the Return selection to NON-CONFIDENTIAL macro."]
[]
[null,null,"UNITS OF MEASURE\n\nAll amounts are to be unrounded and reported on a one for one basis: that is 1000 is to be entered as '1000'. Applicable units of measure may be identified in the table column headings or row descriptors.\n\n"]
[]
[null,null,"COLOUR CODING OF INPUT / NON-INPUT CELLS:"]
[null,null,null,"Yellow = Input cell (mandatory)"]
[null,null,null,"Darker yellow = input cell (mandatory)"]
[null,null,null,"Orange = input cell (if data available)"]
[null,null,null,"Grey = Not applicable/No inputs required"]
[null,null,null,"\nPLEASE DO NOT ENTER TEXT into cells that are to contain numeric data."]
[]
[]
[null,null,"WORKSHEET NAVIGATION\n\nMany tables in the worksheets have been \"grouped\" to allow for easy navigation. To ungroup or group data use the outline symbols in the left margin of excel (for Row groupings) or above the columns (for column groupings). \n\n\n"]
[]
[null,null,"RETURNING COMPLETED RESPONSES\n\nPlease return two (2) files to the AER: \n1. A confidential version which must contain a complete set of all responses with confidential information marked using the Mark selected cells CONFIDENTIAL macro and which has been completed using the locked template file provided by the AER. \n\n2. A public version with confidential information either removed completely or aggregated in some form together with writtten consent to disclose the public version of the response.\n\nUse the drop down box on the Business and other details worksheet to identify the file as either confidential ('consolidated') or public. "]
[]
[null,null,"SUBMITTING AMENDED DATA TO THE AER\n\nIf an NSP wishes to correct data previously submitted to the AER it should resubmit that data using the original completed submission as the starting point. Please make any necessary changes to the data. Data that is not being amended should be left unchanged. \n\nNSPs must identify the reason for the amendments in the Amendment Reason box on the  Business and other details worksheet. NSPs may provide further details regarding any amendments in the Amendments worksheet. \n\n."]
[null,null,"NSP may use Amended Data macro \nto highlight cells that contain amended data.\nNB: if data is also CONFIDENTIAL, re-apply \nthe Confidentiality macro after applying the \nAmended macro"]
[null,null,"Please resubmit two (2) files - a confidential version and a public version of the amended submission to the AER"]

{"sheet":"Business & other details","index":3,"n_rows":89,"n_cols":12,"rows_kept":89,"cut":false,"hidden":false,"merged":[[83,4,83,8],[18,4,18,7],[19,2,19,3],[19,4,19,7],[22,2,22,3],[22,4,22,7],[23,4,23,7],[24,2,24,3],[24,4,24,7],[32,1,32,8],[50,2,50,3],[52,2,52,8],[7,1,7,8],[11,1,11,8],[13,2,13,4],[14,2,14,4],[17,2,17,3],[17,4,17,7]]}
[null,"REGULATORY REPORTING STATEMENT"]
[null,{"$f":"INDEX(dms_TradingNameFull_List,MATCH(dms_TradingName,dms_TradingName_List))","v":"Endeavour Energy"}]
[null,"NEW HISTORICAL DATA  2008-09 to 2016-17"]
[null,"BUSINESS & OTHER DETAILS"]
[]
[]
[null,"Instructions"]
[null,"Complete the following business details regulatory template before entering data or values in any other regulatory template. This regulatory template is linked to other cells within the spreadsheet and automatically generates column headings."]
[]
[null,"SUBMISSION PARTICULARS INPUT SHEETS"]
[]
[null,"ENTITY DETAILS"]
[]
[null,"Short name","Endeavour Energy"]
[null,"ACN / ABN",{"$f":"INDEX(dms_ABN_List,MATCH(dms_TradingName,dms_TradingName_List))","v":11247365823}]
[]
[]
[null,"Business address","Address 1",null,{"$f":"INDEX(dms_Addr1_List,MATCH(dms_TradingName,dms_TradingName_List))","v":"51 Huntingwood Drive"}]
[null,null,null,"Address 2",{"$f":"IF(ISBLANK(INDEX(dms_Addr2_List,MATCH(dms_TradingName,dms_TradingName_List))),\"\",INDEX(dms_Addr2_List,MATCH(dms_TradingName,dms_TradingName_List)))","v":""}]
[null,null,"Suburb",null,{"$f":"INDEX(dms_Suburb_List,MATCH(dms_TradingName,dms_TradingName_List))","v":"HUNTINGWOOD"}]
[null,null,null,"State",{"$f":"INDEX(dms_State_List,MATCH(dms_TradingName,dms_TradingName_List))","v":"NSW"},"p/code",{"$f":"INDEX(dms_PostCode_List,MATCH(dms_TradingName,dms_TradingName_List))","v":"2148"}]
[]
[null,"Postal address","Address 1",null,{"$f":"INDEX(dms_PAddr1_List,MATCH(dms_TradingName,dms_TradingName_List))","v":"PO Box 811"}]
[null,null,null,"Address 2",{"$f":"IF(ISBLANK(INDEX(dms_PAddr2_List,MATCH(dms_TradingName,dms_TradingName_List))),\"\",INDEX(dms_PAddr2_List,MATCH(dms_TradingName,dms_TradingName_List)))","v":""}]
[null,null,"Suburb",null,{"$f":"INDEX(dms_PSuburb_List,MATCH(dms_TradingName,dms_TradingName_List))","v":"SEVEN HILLS"}]
[null,null,null,"State",{"$f":"INDEX(dms_PState_List,MATCH(dms_TradingName,dms_TradingName_List))","v":"NSW"},"p/code",{"$f":"INDEX(dms_PPostCode_List,MATCH(dms_TradingName,dms_TradingName_List))","v":"1730"}]
[]
[]
[null,"Contact name/s",{"$f":"INDEX(dms_ContactName1_List,MATCH(dms_TradingName,dms_TradingName_List))","v":"Jon Hocking"}]
[null,"Contact phone/s",{"$f":"INDEX(dms_ContactPh1_List,MATCH(dms_TradingName,dms_TradingName_List))","v":"02 9853 4386 / 0407 348 156"}]
[null,"Contact email address/s",{"$f":"INDEX(dms_ContactEmail_List,MATCH(dms_TradingName,dms_TradingName_List))","v":"Jon.Hocking@Endeavourenergy.com.au"}]
[]
[null,"REGULATORY CONTROL PERIODS"]
[]
[null,"Forthcoming regulatory control period","2019-20",{"$f":"dms_FRCP_y2","v":"2020-21"},{"$f":"dms_FRCP_y3","v":"2021-22"},{"$f":"dms_FRCP_y4","v":"2022-23"},{"$f":"dms_FRCP_y5","v":"2023-24"},{"$f":"dms_FRCP_y6","v":"2024-25"},{"$f":"dms_FRCP_y7","v":"2025-26"},{"$f":"dms_FRCP_y8","v":"2026-27"},{"$f":"dms_FRCP_y9","v":"2027-28"},{"$f":"dms_FRCP_y10","v":"2028-29"}]
[]
[]
[null,"Current regulatory control period","2008-09",{"$f":"IF(dms_RPT=\"financial\",VALUE(LEFT(CRCP_y1,4)+1)&\"-\"&TEXT(MID(CRCP_y1,3,2)+2,\"00\"),VALUE(LEFT(CRCP_y1,4)+1))","v":"2009-10"},{"$f":"IF(dms_RPT=\"financial\",VALUE(LEFT(CRCP_y2,4)+1)&\"-\"&TEXT(VALUE(MID(CRCP_y2,3,2)+2),\"00\"),VALUE(LEFT(CRCP_y2,4)+1))","v":"2010-11"},{"$f":"IF(dms_RPT=\"financial\",VALUE(LEFT(CRCP_y3,4)+1)&\"-\"&TEXT(VALUE(MID(CRCP_y3,3,2)+2),\"00\"),VALUE(LEFT(CRCP_y3,4)+1))","v":"2011-12"},{"$f":"IF(dms_RPT=\"financial\",VALUE(LEFT(CRCP_y4,4)+1)&\"-\"&TEXT(VALUE(MID(CRCP_y4,3,2)+2),\"00\"),VALUE(LEFT(CRCP_y4,4)+1))","v":"2012-13"},{"$f":"IF(dms_RPT=\"financial\",VALUE(LEFT(CRCP_y5,4)+1)&\"-\"&TEXT(VALUE(MID(CRCP_y5,3,2)+2),\"00\"),VALUE(LEFT(CRCP_y5,4)+1))","v":"2013-14"},{"$f":"IF(dms_RPT=\"financial\",VALUE(LEFT(CRCP_y6,4)+1)&\"-\"&TEXT(VALUE(MID(CRCP_y6,3,2)+2),\"00\"),VALUE(LEFT(CRCP_y6,4)+1))","v":"2014-15"},{"$f":"IF(dms_RPT=\"financial\",VALUE(LEFT(CRCP_y7,4)+1)&\"-\"&TEXT(VALUE(MID(CRCP_y7,3,2)+2),\"00\"),VALUE(LEFT(CRCP_y7,4)+1))","v":"2015-16"},{"$f":"IF(dms_RPT=\"financial\",VALUE(LEFT(CRCP_y8,4)+1)&\"-\"&TEXT(VALUE(MID(CRCP_y8,3,2)+2),\"00\"),VALUE(LEFT(CRCP_y8,4)+1))","v":"2016-17"},{"$f":"IF(dms_RPT=\"financial\",VALUE(LEFT(CRCP_y9,4)+1)&\"-\"&TEXT(VALUE(MID(CRCP_y9,3,2)+2),\"00\"),VALUE(LEFT(CRCP_y9,4)+1))","v":"2017-18"}]
[]
[]
[null,"Previous regulatory control period",{"$f":"IF(dms_RPT=\"financial\",VALUE(LEFT(PRCP_y2,4)-1)&\"-\"&TEXT(VALUE(MID(PRCP_y2,3,2)),\"00\"),VALUE(LEFT(PRCP_y2,4)-1))","v":"2003-04"},{"$f":"IF(dms_RPT=\"financial\",VALUE(LEFT(PRCP_y3,4)-1)&\"-\"&TEXT(VALUE(MID(PRCP_y3,3,2)),\"00\"),VALUE(LEFT(PRCP_y3,4)-1))","v":"2004-05"},{"$f":"IF(dms_RPT=\"financial\",VALUE(LEFT(PRCP_y4,4)-1)&\"-\"&TEXT(VALUE(MID(PRCP_y4,3,2)),\"00\"),VALUE(LEFT(PRCP_y4,4)-1))","v":"2005-06"},{"$f":"IF(dms_RPT=\"financial\",VALUE(LEFT(PRCP_y5,4)-1)&\"-\"&TEXT(VALUE(RIGHT(PRCP_y5,2)-1),\"00\"),VALUE(LEFT(PRCP_y5,4)-1))","v":"2006-07"},{"$f":"IF(dms_RPT=\"financial\",VALUE(LEFT(CRCP_y1,4)-1)&\"-\"&TEXT(VALUE(RIGHT(CRCP_y1,2)-1),\"00\"),VALUE(LEFT(CRCP_y1,4)-1))","v":"2007-08"}]
[]
[]
[null,"Commencing regulatory year","2008-09","CRY"]
[]
[null,"Last completed regulatory year","2016-17","dms_FinalYear"]
[]
[null,null,"DELETE NR 'CRY' IF NOT AN ANNUAL RIN (EB, CA , ARR)"]
[null,null,"APPLY NR 'CRY' IF AN ANNUAL RIN (EB, CA , ARR) - including multi year annual RINs eg. Recast CA. EB"]
[]
[null,"Source","Reporting",null,"Please select the correct submission type from the dropdown list."]
[null,"Data quality (actual, estimate, public, consolidated)","Consolidated"]
[null,"Amended RIN submission - amendment reason"]
[null,"Submission Date","2018-04-30","dms_SubmissionDate","Please enter date this file submitted to AER (dd/mm/yyyy)"]
[null,"EBSS - First application of scheme in forthcoming period?","Yes"]
[null,"Sector",{"$f":"INDEX(dms_Sector_List,MATCH(dms_TradingName,dms_TradingName_List))","v":"Electricity"},"dms_Sector","=INDEX(dms_Sector_List,MATCH(dms_TradingName,dms_TradingName_List))"]
[null,"Segment",{"$f":"INDEX(dms_Segment_List,MATCH(dms_TradingName,dms_TradingName_List))","v":"Distribution"},"dms_Segment","=INDEX(dms_Segment_List,MATCH(dms_TradingName,dms_TradingName_List))"]
[null,"Regulatory Year Ending",{"$f":"IF(dms_MultiYear_Flag=1,LEFT(dms_Specified_FinalYear,2)&RIGHT(dms_Specified_FinalYear,2),INDEX(dms_RYE_Formula_Result,MATCH(dms_Model,dms_Model_List)))","v":"2017"},"dms_RYE","=IF(dms_MultiYear_Flag=1,LEFT(dms_Specified_FinalYear,2)&RIGHT(dms_Specified_FinalYear,2),INDEX(dms_RYE_Formula_Result,MATCH(dms_Model,dms_Model_List)))"]
[null,"Reporting Period Type",{"$f":"INDEX(dms_RPT_List,MATCH(dms_TradingName,dms_TradingName_List))","v":"Financial"},"dms_RPT","=INDEX(dms_RPT_List,MATCH(dms_TradingName,dms_TradingName_List))"]
[null,"Model or RIN Type","CA","dms_Model","Drop down selection"]
[null,"Security Classification","Public","dms_Classification","Always Public"]
[null,"Template - version no.",5,"dms_TemplateNumber"]
[null,"Dollar $ real month",{"$f":"INDEX(dms_RPTMonth_List,MATCH(dms_TradingName,dms_TradingName_List))","v":"June"},"dms_RPTMonth","=INDEX(dms_RPTMonth_List,MATCH(dms_TradingName,dms_TradingName_List))"]
[null,"Dollar $ real  (the last month before the FRCP_y1)",{"$f":"CONCATENATE(dms_RPTMonth)&\" \"&VALUE((LEFT(dms_CRCP_FinalYear_Result,2)&RIGHT(dms_CRCP_FinalYear_Result,2)))","v":"June 2017"},"dms_DollarReal","=IF(SUM(dms_SingleYear_Model)>0,CONCATENATE(dms_RPTMonth)&\" \"&VALUE((LEFT(CRY,2))&RIGHT(CRY,2)),CONCATENATE(dms_RPTMonth)&\" \"&VALUE((LEFT(dms_CRCP_FinalYear_Result,2)&RIGHT(dms_CRCP_FinalYear_Result,2))))"]
[null,"Form of control",{"$f":"INDEX(dms_FormControl_List,MATCH(dms_TradingName,dms_TradingName_List))","v":"Revenue cap"},"dms_FormControl","=INDEX(dms_FormControl_List,MATCH(dms_TradingName,dms_TradingName_List))"]
[null,"RIN response - version no.",1,"dms_RINversion"]
[null,"Jurisdiction",{"$f":"INDEX(dms_JurisdictionList,MATCH(dms_TradingName,dms_TradingName_List))","v":"NSW"},"dms_Jurisdiction","=INDEX(dms_JurisdictionList,MATCH(dms_TradingName,dms_TradingName_List))"]
[null,"Backcast Multiyear EB, CA or ARR?",1,"dms_MultiYear_Flag","1=y, 0-n"]
[null,null,{"$f":"FRY","v":"2016-17"},"dms_Specified_FinalYear","The result here is returned to dms_CRCP_FinalYear_Result if dms_MultiYear_Flag is set to 1"]
[null,"Single Year Model T/F",{"$f":"IF(dms_Model=\"EB\",1,0)","v":0},"dms_EB"]
[null,null,0,"dms_CA","=dms_SingleYear_Model"]
[null,null,{"$f":"IF(dms_Model=\"ARR\",1,0)","v":0},"dms_ARR"]
[null,"Single Year Final Year Reference","CRY","dms_SingleYear_FinalYear_Ref","This is the reference for EB, CA & ARR RINs"]
[null,"Single Year Final Year Result",{"$f":"INDIRECT(dms_SingleYear_FinalYear_Ref)","v":"2008-09"},"dms_SingleYear_FinalYear_Result","=INDIRECT(dms_SingleYear_FinalYear_Ref)",null,null,null,"Formula errors OK"]
[null,"FRCP length in years",{"$f":"INDEX(dms_FRCPlength_List,MATCH(dms_TradingName,dms_TradingName_List))","v":5},"dms_FRCPlength_Num","=INDEX(dms_FRCPlength_List,MATCH(dms_TradingName,dms_TradingName_List))"]
[null,"Multi Year Final Year Reference",{"$f":"INDEX(dms_FinalYear_List,MATCH(dms_FRCPlength_Num,dms_FRCPlength_Num_List))","v":"dms_FRCP_y5"},"dms_MultiYear_FinalYear_Ref","=INDEX(dms_FinalYear_List,MATCH(dms_FRCPlength_Num,dms_FRCPlength_Num_List))"]
[null,"Multi Year Final Year Result",{"$f":"IF(dms_MultiYear_Flag=0,INDIRECT(dms_MultiYear_FinalYear_Ref),dms_Specified_FinalYear)","v":"2016-17"},"dms_MultiYear_FinalYear_Result","=IF(dms_MultiYear_Flag=0,INDIRECT(dms_MultiYear_FinalYear_Ref),dms_Specified_FinalYear)",null,null,null,"Formula errors OK"]
[null,"CRCP length in years",{"$f":"INDEX(dms_CRCPlength_List,MATCH(dms_TradingName,dms_TradingName_List))","v":5},"dms_CRCPlength_Num","=INDEX(dms_CRCPlength_List,MATCH(dms_TradingName,dms_TradingName_List))"]
[null,"CRCP Final Year Reference",{"$f":"INDEX(dms_CFinalYear_List,MATCH(dms_CRCPlength_Num,dms_CRCPlength_Num_List))","v":"CRCP_y5"},"dms_CRCP_FinalYear_Ref","=INDEX(dms_CFinalYear_List,MATCH(dms_CRCPlength_Num,dms_CRCPlength_Num_List))"]
[null,"CRCP First Year Result",{"$f":"INDEX(dms_CRCP_years,MATCH(dms_CRCPlength_Num,dms_CRCP_index))","v":"2014-15"},"dms_CRCP_FirstYear_Result","=INDEX(dms_CRCP_years,MATCH(dms_CRCPlength_Num,dms_CRCP_index))"]
[null,"CRCP Final Year Result",{"$f":"IF(dms_MultiYear_Flag=0,(IF(SUM(dms_SingleYear_Model)>0,CRY,dms_CRCP_yZ)),dms_Specified_FinalYear)","v":"2016-17"},"dms_CRCP_FinalYear_Result","=IF(dms_MultiYear_Flag=0,(IF(SUM(dms_SingleYear_Model)>0,CRY,dms_CRCP_yZ)),dms_Specified_FinalYear)"]
[null,"Table 6.6.3 - Public lighting repair - no. business days",{"$f":"INDEX(dms_663_List,MATCH(dms_TradingName,dms_TradingName_List))","v":5},"dms_663"]
[null,"Distribution Determination Reference",{"$f":"INDEX(dms_DeterminationRef_List,MATCH(dms_TradingName,dms_TradingName_List))","v":"2014-19 Distribution Determination"}]
[null,"Backcast templates only - unit of measure ","$0s","dms_Backcast_UOM","If the cover sheet is for Backcast data ensure to apply dms_Backcast_UOM named range to this field. Otherwise, do not apply this named range."]
[null,"EB/CA Unit of Measure for Monetary Values","$0s","dms_dollar_nom_UOM","If the cover sheet is attached to an EB files make sure this field is set"]
[]
[null,"discard this record?","NO","dms_DISCARD","If record is to be discarded from DB set this flag to YES"]
[]
[null,"USES NAMED RANGES FLAG","yes","dms_Defined_Names_Used"]

{"sheet":"2.5 Connections","index":4,"n_rows":67,"n_cols":13,"rows_kept":67,"cut":false,"hidden":false,"merged":[[5,1,5,2],[30,4,30,12],[12,4,12,12],[51,4,51,12]]}
[null,"REGULATORY REPORTING STATEMENT"]
[null,{"$f":"INDEX(dms_TradingNameFull_List,MATCH(dms_TradingName,dms_TradingName_List))","v":"Endeavour Energy"}]
[null,"NEW HISTORICAL DATA  2008-09 to 2016-17"]
[null,"2.5 CONNECTIONS"]
[]
[null,"There are THREE tables on this worksheet - each has been 'grouped' (and sub-grouped) for easy navigation. See the Instructions sheet on how to group or ungroup tables. "]
[]
[]
[]
[null,"2.5.2 - COST METRICS BY CONNECTION CLASSIFICATION"]
[]
[null,"EXPENDITURE - STANDARD CONTROL SERVICES"]
[null,null,null,null,"EXPENDITURE\n($0's)"]
[null,null,null,null,{"$f":"IF(dms_RPT=\"financial\",dms_fy4,dms_cy4)","v":"2008-09"},{"$f":"IF(dms_RPT=\"financial\",dms_fy5,dms_cy5)","v":"2009-10"},{"$f":"IF(dms_RPT=\"financial\",dms_fy6,dms_cy6)","v":"2010-11"},{"$f":"IF(dms_RPT=\"financial\",dms_fy7,dms_cy7)","v":"2011-12"},{"$f":"IF(dms_RPT=\"financial\",dms_fy8,dms_cy8)","v":"2012-13"},{"$f":"IF(dms_RPT=\"financial\",dms_fy9,dms_cy9)","v":"2013-14"},{"$f":"IF(dms_RPT=\"financial\",dms_fy10,dms_cy10)","v":"2014-15"},{"$f":"IF(dms_RPT=\"financial\",dms_fy11,dms_cy11)","v":"2015-16"},{"$f":"IF(dms_RPT=\"financial\",dms_fy12,dms_cy12)","v":"2016-17"}]
[null,"RESIDENTIAL","Simple connection LV",null,3436000,2695000,3083000,1986000,1428000,1520357,2067383,2369467,2709225]
[null,null,"Complex connection LV",null,0,0,0,0,0,0,0,0,0]
[null,null,"Complex connection HV",null,0,0,0,0,0,0,0,0,0]
[null,"COMMERCIAL/INDUSTRIAL","Simple connection LV",null,0,0,0,0,0,0,0,0,0]
[null,null,"Complex connection HV (customer connected at LV, minor HV works)",null,12808000,10719000,10131000,9218000,5553000,5120910,4459476,637272,3664958]
[null,null,"Complex connection HV (customer connected at LV, upstream asset works)",null,0,0,0,0,0,0,0,0,0]
[null,null,"Complex connection HV (customer connected at HV)",null,0,0,0,0,0,0,0,0,0]
[null,null,"Complex connection sub-transmission",null,0,0,0,0,0,0,0,0,0]
[null,"SUBDIVISION","Complex connection LV",null,0,0,0,0,0,0,0,0,0]
[null,null,"Complex connection HV (no upstream asset works)",null,0,0,0,0,0,0,0,0,0]
[null,null,"Complex connection HV (with upstream asset works)",null,3196000,2677000,4001000,4204000,4942000,4581973,5830899,6067610,6895649]
[null,"EMBEDDED GENERATION","Simple connection LV",null,0,0,0,0,0,0,0,0,0]
[null,null,"Complex connection HV (small capacity)",null,0,0,0,0,0,0,0,0,0]
[null,null,"Complex connection HV (large capacity)",null,0,0,0,0,0,0,0,0,0]
[]
[null,"EXPENDITURE - STANDARD CONTROL SERVICES - CAPITAL CONTRIBUTIONS"]
[null,null,null,null,"EXPENDITURE\n($0's)"]
[null,null,null,null,{"$f":"IF(dms_RPT=\"financial\",dms_fy4,dms_cy4)","v":"2008-09"},{"$f":"IF(dms_RPT=\"financial\",dms_fy5,dms_cy5)","v":"2009-10"},{"$f":"IF(dms_RPT=\"financial\",dms_fy6,dms_cy6)","v":"2010-11"},{"$f":"IF(dms_RPT=\"financial\",dms_fy7,dms_cy7)","v":"2011-12"},{"$f":"IF(dms_RPT=\"financial\",dms_fy8,dms_cy8)","v":"2012-13"},{"$f":"IF(dms_RPT=\"financial\",dms_fy9,dms_cy9)","v":"2013-14"},{"$f":"IF(dms_RPT=\"financial\",dms_fy10,dms_cy10)","v":"2014-15"},{"$f":"IF(dms_RPT=\"financial\",dms_fy11,dms_cy11)","v":"2015-16"},{"$f":"IF(dms_RPT=\"financial\",dms_fy12,dms_cy12)","v":"2016-17"}]
[null,"RESIDENTIAL","Simple connection LV",null,2891644,2919280,4956129,3854689,3484490,6047123,4665653,8736172,8513695]
[null,null,"Complex connection LV",null,0,0,0,0,0,0,0,0,0]
[null,null,"Complex connection HV",null,0,0,0,0,0,0,0,0,0]
[null,"COMMERCIAL/INDUSTRIAL","Simple connection LV",null,0,0,0,0,0,0,0,0,0]
[null,null,"Complex connection HV (customer connected at LV, minor HV works)",null,14944261,13288257,9882848,13623794,8940299,14254371,18972308,12051983,30416839]
[null,null,"Complex connection HV (customer connected at LV, upstream asset works)",null,0,0,0,0,0,0,0,0,0]
[null,null,"Complex connection HV (customer connected at HV)",null,28755289,16100988,13661223,16358915,12762599,16675905,34972323,11746454,35159439]
[null,null,"Complex connection sub-transmission",null,0,0,0,0,0,0,0,0,0]
[null,"SUBDIVISION","Complex connection LV",null,0,0,0,0,0,0,0,0,0]
[null,null,"Complex connection HV (no upstream asset works)",null,0,0,0,0,0,0,0,0,0]
[null,null,"Complex connection HV (with upstream asset works)",null,9440806,11818475,22298102,28541067,42031586,47150872,53310755,91230612,90046494]
[null,"EMBEDDED GENERATION","Simple connection LV",null,0,0,0,0,0,0,0,0,0]
[null,null,"Complex connection HV (small capacity)",null,0,0,0,0,0,0,0,0,0]
[null,null,"Complex connection HV (large capacity)",null,0,0,0,0,0,0,0,0,0]
[]
[]
[null,"2.5.3 - VOLUMES BY CONNECTION CLASSIFICATION"]
[]
[null,"NEW CONNECTIONS - STANDARD CONTROL SERVICES"]
[null,null,null,null,"VOLUMES\n(0's)"]
[null,null,null,null,{"$f":"IF(dms_RPT=\"financial\",dms_fy4,dms_cy4)","v":"2008-09"},{"$f":"IF(dms_RPT=\"financial\",dms_fy5,dms_cy5)","v":"2009-10"},{"$f":"IF(dms_RPT=\"financial\",dms_fy6,dms_cy6)","v":"2010-11"},{"$f":"IF(dms_RPT=\"financial\",dms_fy7,dms_cy7)","v":"2011-12"},{"$f":"IF(dms_RPT=\"financial\",dms_fy8,dms_cy8)","v":"2012-13"},{"$f":"IF(dms_RPT=\"financial\",dms_fy9,dms_cy9)","v":"2013-14"},{"$f":"IF(dms_RPT=\"financial\",dms_fy10,dms_cy10)","v":"2014-15"},{"$f":"IF(dms_RPT=\"financial\",dms_fy11,dms_cy11)","v":"2015-16"},{"$f":"IF(dms_RPT=\"financial\",dms_fy12,dms_cy12)","v":"2016-17"}]
[null,"RESIDENTIAL","Simple connection LV",null,1884,1861,3056,1928,2434,4260,3080,5937,9122]
[null,null,"Complex connection LV",null,0,0,0,0,0,0,0,0,0]
[null,null,"Complex connection HV",null,0,0,0,0,0,0,0,0,0]
[null,"COMMERCIAL/INDUSTRIAL","Simple connection LV",null,0,0,0,0,0,0,0,0,0]
[null,null,"Complex connection HV (customer connected at LV, minor HV works)",null,267,951,685,420,2144,336,418,354,1237]
[null,null,"Complex connection HV (customer connected at LV, upstream asset works)",null,0,0,0,0,0,0,0,0,0]
[null,null,"Complex connection HV (customer connected at HV)",null,0,0,0,0,0,0,0,0,0]
[null,null,"Complex connection sub-transmission",null,0,0,0,0,0,0,0,0,0]
[null,"SUBDIVISION","Complex connection LV",null,0,0,0,0,0,0,0,0,0]
[null,null,"Complex connection HV (no upstream asset works)",null,0,0,0,0,0,0,0,0,0]
[null,null,"Complex connection HV (with upstream asset works)",null,4252,4200,6898,4351,5493,9613,9464,12673,12091]
[null,"EMBEDDED GENERATION","Simple connection LV",null,294,5404,31214,14861,8750,4116,5075,3124,1885]
[null,null,"Complex connection HV (small capacity)",null,0,0,0,0,0,0,0,0,0]
[null,null,"Complex connection HV (large capacity)",null,0,0,0,0,0,0,0,0,0]

{"sheet":"2.6 Non-network","index":5,"n_rows":35,"n_cols":14,"rows_kept":35,"cut":false,"hidden":false,"merged":[[27,1,27,4],[28,1,28,4],[29,1,29,4],[30,1,30,4],[22,1,22,4],[23,1,23,4],[24,1,24,4],[25,1,25,4],[37,1,37,4],[38,1,38,4],[39,1,39,4],[31,1,31,4],[32,1,32,4],[34,1,34,4],[35,1,35,4],[36,1,36,4],[5,1,5,2],[10,5,10,13],[13,1,13,4],[14,1,14,4],[21,1,21,4],[18,1,18,4],[20,1,20,4],[15,1,15,4],[16,1,16,4],[17,1,17,4]]}
[null,"REGULATORY REPORTING STATEMENT"]
[null,{"$f":"INDEX(dms_TradingNameFull_List,MATCH(dms_TradingName,dms_TradingName_List))","v":"Endeavour Energy"}]
[null,"NEW HISTORICAL DATA  2008-09 to 2016-17"]
[null,"2.6 NON NETWORK EXPENDITURE"]
[]
[null,"There are THREE tables on this worksheet - each has been 'grouped' (and sub-grouped) for easy navigation. See the Instructions sheet on how to group or ungroup tables. "]
[]
[]
[]
[null,"2.6.4 - INFORMATION & COMMUNICATIONS TECHNOLOGY - CAPEX BY PURPOSE"]
[null,null,null,null,null,"EXPENDITURE\n($0's)"]
[null,null,null,null,null,{"$f":"IF(dms_RPT=\"financial\",dms_fy4,dms_cy4)","v":"2008-09"},{"$f":"IF(dms_RPT=\"financial\",dms_fy5,dms_cy5)","v":"2009-10"},{"$f":"IF(dms_RPT=\"financial\",dms_fy6,dms_cy6)","v":"2010-11"},{"$f":"IF(dms_RPT=\"financial\",dms_fy7,dms_cy7)","v":"2011-12"},{"$f":"IF(dms_RPT=\"financial\",dms_fy8,dms_cy8)","v":"2012-13"},{"$f":"IF(dms_RPT=\"financial\",dms_fy9,dms_cy9)","v":"2013-14"},{"$f":"IF(dms_RPT=\"financial\",dms_fy10,dms_cy10)","v":"2014-15"},{"$f":"IF(dms_RPT=\"financial\",dms_fy11,dms_cy11)","v":"2015-16"},{"$f":"IF(dms_RPT=\"financial\",dms_fy12,dms_cy12)","v":"2016-17"}]
[null,"ICT CAPABILITY GROWTH"]
[null,"ICT CAPABILITY GROWTH",null,null,null,6075573,2570807,3344735,5092464,3170048,3339129,3282893,3029110,3574685]
[]
[]
[]
[]
[]
[null,"ICT ASSET EXTENSIONS"]
[null,"ICT ASSET EXTENSIONS",null,null,null,2782391,3744683,6397166,2039450,2224801,1892858,1679819,2103879,1843909]
[]
[]
[]
[]
[]
[null,"ICT ASSET REMEDITATION"]
[null,"ICT ASSET REMEDITATION",null,null,null,477078,117855,85318,434703,683891,911800,78989,467088,493577]
[]
[]
[]
[]
[]
[null,"ICT ASSET REPLACEMENT"]
[null,"ICT ASSET REPLACEMENT",null,null,null,6105957,4409655,17807016,7013392,6856445,7705867,6591962,4118342,2516434]

{"sheet":"2.10 Network overheads","index":6,"n_rows":34,"n_cols":12,"rows_kept":34,"cut":false,"hidden":false,"merged":[[5,1,5,2],[8,3,8,11],[23,3,23,11]]}
[null,"REGULATORY REPORTING STATEMENT"]
[null,{"$f":"dms_TradingName","v":"Endeavour Energy"}]
[null,"NEW HISTORICAL DATA  2008-09 to 2016-17"]
[null,"2.10 OVERHEADS"]
[]
[null,"There are TWO tables on this worksheet. Each table has been 'grouped' (and sub-grouped) for easy navigation.  See the Instructions sheet on how to group or ungroup data."]
[]
[null,"2.10.1 - NETWORK OVERHEADS EXPENDITURE"]
[null,null,null,"EXPENDITURE\n($0's)"]
[null,null,null,{"$f":"IF(dms_RPT=\"financial\",dms_fy4,dms_cy4)","v":"2008-09"},{"$f":"IF(dms_RPT=\"financial\",dms_fy5,dms_cy5)","v":"2009-10"},{"$f":"IF(dms_RPT=\"financial\",dms_fy6,dms_cy6)","v":"2010-11"},{"$f":"IF(dms_RPT=\"financial\",dms_fy7,dms_cy7)","v":"2011-12"},{"$f":"IF(dms_RPT=\"financial\",dms_fy8,dms_cy8)","v":"2012-13"},{"$f":"IF(dms_RPT=\"financial\",dms_fy9,dms_cy9)","v":"2013-14"},{"$f":"IF(dms_RPT=\"financial\",dms_fy10,dms_cy10)","v":"2014-15"},{"$f":"IF(dms_RPT=\"financial\",dms_fy11,dms_cy11)","v":"2015-16"},{"$f":"IF(dms_RPT=\"financial\",dms_fy12,dms_cy12)","v":"2016-17"}]
[null,"OPEX"]
[null,"Standard Control Services","Total  ",147453107.6758604,153799477.35628253,161661042.47243077,151473246.93590787,136261022.89833298,138920548.24614999,93071888.093852267,91590172,91593823.940427572]
[null,"Alternative Control Services","Total  ",3945254.2847592402,3981112.7889877823,3623010.8557538325,3711860.8943097163,2265912.2360808514,1651941.1818908278,2285449.7770103896,15819749,12164511.664373159]
[null,"CAPEX"]
[null,"Standard Control Services","Total  ",-34033233.218713842,-41811294.355587676,-40181262.197458543,-46675880.783131279,-39254794.490141772,-34694663.661223181,-27740675.500029612,-26995066,-24749628.349246256]
[null,"Alternative Control Services","Total  ",-1073470.6068958696,-1273478.1819136296,-1132653.6019533349,-1395832.1369560754,-282319.59803265153,-618411.33074860473,-950603.28062206332,-1604789.9433259356,-669156.09542435769]
[null,"OTHER DISTRIBUTION SERVICES"]
[null,"Negotiated Services","Total  ",0,0,0,0,0,0,0,0,0]
[null,"Unregulated Services","Total  ",2208291.9384891782,2176967.4926873823,2205702.7853042204,1080554.8693881955,842287.64195042173,4107893.1674665362,7990936.8077753419,3651572,4310068.5444219988]
[]
[]
[]
[null,"2.10.2 - CORPORATE OVERHEADS EXPENDITURE"]
[null,null,null,"EXPENDITURE\n($0's)"]
[null,null,null,{"$f":"IF(dms_RPT=\"financial\",dms_fy4,dms_cy4)","v":"2008-09"},{"$f":"IF(dms_RPT=\"financial\",dms_fy5,dms_cy5)","v":"2009-10"},{"$f":"IF(dms_RPT=\"financial\",dms_fy6,dms_cy6)","v":"2010-11"},{"$f":"IF(dms_RPT=\"financial\",dms_fy7,dms_cy7)","v":"2011-12"},{"$f":"IF(dms_RPT=\"financial\",dms_fy8,dms_cy8)","v":"2012-13"},{"$f":"IF(dms_RPT=\"financial\",dms_fy9,dms_cy9)","v":"2013-14"},{"$f":"IF(dms_RPT=\"financial\",dms_fy10,dms_cy10)","v":"2014-15"},{"$f":"IF(dms_RPT=\"financial\",dms_fy11,dms_cy11)","v":"2015-16"},{"$f":"IF(dms_RPT=\"financial\",dms_fy12,dms_cy12)","v":"2016-17"}]
[null,"OPEX"]
[null,"Standard Control Services","Total",64749569.916137554,64785989.76166559,60199784.491925195,114721651.15258077,88817290.162827104,119487240.78141129,107199824.04109523,135467940.13064817,131273661.05276538]
[null,"Alternative Control Services","Total",3836161.2158474252,4225292.3575991727,4035800.6426930539,5543914.3236294994,4215010.2926199669,5220957.4035098739,29904278.155694552,24783164,24612763.056767099]
[null,"CAPEX"]
[null,"Standard Control Services","Total",-14944664.432651255,-17612453.140969262,-14962809.146260813,-35351022.182204612,-25586953.615594227,-37675527.184706986,-29575604.3384449,-21157649,-14512736.680679103]
[null,"Alternative Control Services","Total",-1043787.2976741308,-1351586.3314631304,-1261703.1294433586,-2084769.3374813935,-525165.97623134847,-416602.04889439524,-1036811.9264766269,-1358497.1247043137,-419078.6672149974]
[null,"OTHER DISTRIBUTION SERVICES"]
[null,"Negotiated Services","Total",0,0,0,0,0,0,0,0,0]
[null,"Unregulated Services","Total",26018002.761086952,25723627.050972689,24931125.009217512,19145101.979568627,14700864.618786959,27122571.702820554,26030785.516255856,12913450.674621291,9029177.3601376675]

{"sheet":"Amendments","index":7,"n_rows":3,"n_cols":4,"rows_kept":3,"cut":false,"hidden":false,"merged":[[1,1,1,3]]}
[null,{"$f":"CONCATENATE(\"If \",dms_TradingName,\" resubmits this Regulatory Reporting Statement, please use this worksheet to identify amendments made to data resubmitted to the AER.\")","v":"If Endeavour Energy resubmits this Regulatory Reporting Statement, please use this worksheet to identify amendments made to data resubmitted to the AER."}]
[null,"NSP data amendments"]
[null,"Worksheet","Table/Cell","Reason for amendment"]